bitfinex/quotes_ETHUSD_20250519
["timestamp","ask_amount","ask_price","bid_price","bid_amount"]
[1747658590377,4.27205557,2396.9,2396.8,0.13350996]
[1747658590582,5.92035171,2396.9,2396.8,0.13350996]
[1747658590814,5.9615656,2396.9,2396.8,0.13350996]
[1747658591191,4.17240372,2396.7,2396.6,0.14857696]
[1747658591391,13.86661761,2396.7,2396.6,0.14857696]
[1747658591721,13.82540372,2396.7,2396.6,0.14857696]
[1747658592213,1.74829614,2396.9,2396.6,0.14857696]
[1747658592214,0.1,2396.9,2396.6,0.14857696]
[1747658592398,0.1,2396.9,2396.6,5.14562341]
[1747658592714,0.1,2396.9,2396.6,0.8245]
[1747658593214,0.1,2396.9,2396.6,6.29676824]
[1747658593429,0.1,2396.9,2396.6,10.12421505]
[1747658593920,4.27208586,2396.9,2396.5,8.0]
[1747658594080,4.17240823,2396.7,2396.3,0.89396669]
[1747658594424,4.27213508,2396.9,2396.3,0.89396669]
[1747658594425,4.17233414,2396.8,2396.3,0.89396669]
[1747658594596,4.27213801,2396.9,2396.4,4.7102074]
[1747658595012,4.27213801,2396.9,2396.5,0.13346669]
[1747658595213,4.27213801,2396.9,2396.6,8.0]
[1747658595736,4.2720672,2396.9,2396.6,8.0]
[1747658596239,4.2720672,2396.9,2396.5,8.0]
[1747658596831,4.17227022,2396.8,2396.4,0.53739955]
[1747658597138,4.17227022,2396.8,2396.4,8.53739955]
[1747658597333,4.17222963,2396.8,2396.3,0.90907696]
[1747658597495,4.17262278,2396.6,2396.3,8.90907696]
[1747658598641,4.17262278,2396.6,2396.4,0.13347307]
[1747658599831,4.27212453,2396.9,2396.5,4.17275116]
[1747658600138,4.27205974,2396.9,2396.5,4.30622423]
[1747658600347,0.1,2396.9,2396.5,4.30622423]
[1747658600656,0.1,2396.9,2396.7,4.17232273]
[1747658600861,0.1,2396.9,2396.8,4.17222963]
[1747658601510,0.1,2396.9,2396.8,23.2797027]
[1747658602560,0.1,2396.9,2396.8,23.48441221]
[1747658602934,0.1,2397.9,2397.6,0.7637]
[1747658603268,0.1,2397.9,2397.6,4.934444]
[1747658603568,0.1,2397.9,2397.6,1.07054192]
[1747658603723,0.1,2397.9,2397.8,4.17048961]
[1747658604062,0.1,2397.9,2397.7,12.53722848]
[1747658604225,0.1,2397.9,2397.8,0.23286886]
[1747658604423,4.27031569,2397.9,2397.8,0.23286886]
[1747658604622,4.27031569,2397.9,2397.7,0.13347307]
[1747658604623,4.17048961,2397.8,2397.7,0.13347307]
[1747658604871,4.17048961,2397.8,2397.7,0.36636217]
[1747658605040,4.17048961,2397.8,2397.7,0.13347307]
[1747658605561,0.1,2397.9,2397.3,0.93729465]
[1747658605744,4.17057083,2397.8,2397.4,1.12658696]
[1747658605987,0.1,2397.9,2397.5,4.17087737]
[1747658606150,0.1,2397.9,2397.6,0.23285886]
[1747658606366,0.1,2397.9,2397.7,0.27461586]
[1747658606677,0.1,2397.9,2397.8,0.23291006]
[1747658608370,4.27031569,2397.9,2397.8,0.23291006]
[1747658608569,4.27031569,2397.9,2397.5,12.17099433]
[1747658608967,4.27031569,2397.9,2397.6,0.23276684]
[1747658609170,4.27031569,2397.9,2397.6,0.54775545]
[1747658609469,4.27031569,2397.9,2397.7,0.36616924]
[1747658609633,0.1,2397.9,2397.7,0.36616924]
[1747658609835,4.17048961,2397.8,2397.7,0.1334024]
[1747658610751,6.84568816,2397.8,2397.7,0.1334024]
[1747658611048,4.17091269,2397.6,2397.2,8.14819465]
[1747658611434,4.17101534,2397.5,2397.2,0.14819465]
[1747658611634,4.17119913,2397.4,2397.3,0.23276749]
[1747658612140,4.17111772,2397.5,2397.3,0.23277864]
[1747658612357,4.17101726,2397.5,2397.2,0.14819465]
[1747658612688,4.17101726,2397.5,2397.3,0.36625596]
[1747658613066,0.7899,2397.8,2397.3,0.36625596]
[1747658613256,4.17111677,2397.5,2397.3,0.36625596]
[1747658613600,4.17111677,2397.5,2397.3,0.13342174]
[1747658614488,4.17118545,2397.4,2397.3,0.13342174]
[1747658614692,4.17118545,2397.4,2397.0,0.14819465]
[1747658614983,4.17137907,2397.3,2397.0,8.14819465]
[1747658615187,4.96039139,2397.8,2397.0,0.14819465]
[1747658615188,0.04121389,2397.7,2397.0,0.14819465]
[1747658615390,0.7899,2397.8,2397.0,0.14819465]
[1747658615576,13.55367893,2397.7,2397.0,0.14819465]
[1747658615782,4.17127126,2397.4,2397.0,0.14819465]
[1747658615959,13.55369922,2397.7,2397.0,0.14819465]
[1747658616157,4.17133999,2397.4,2397.0,0.14819465]
[1747658616391,4.17127581,2397.4,2397.0,4.45340378]
[1747658616688,4.17152424,2397.3,2397.0,0.28162867]
[1747658616858,13.55374062,2397.7,2397.0,0.28162867]
[1747658617054,4.17128607,2397.4,2397.0,0.28162867]
[1747658617390,0.1,2397.9,2397.1,0.8012]
[1747658617554,0.1,2397.9,2397.5,8.0]
[1747658617753,0.1,2397.9,2397.1,1.3512]
[1747658617754,4.17065227,2397.8,2397.4,8.0]
[1747658617953,4.17065227,2397.8,2397.4,12.17114316]
[1747658618696,4.17065227,2397.8,2397.5,0.13343402]
[1747658618896,27.543,2398.3,2397.5,0.13343402]
[1747658618897,4.16820103,2399.2,2398.0,1.3023]
[1747658619186,4.16844407,2399.0,2398.4,8.0]
[1747658619387,4.16831387,2399.1,2398.4,4.16942531]
[1747658619596,4.26859602,2398.9,2398.2,8.0]
[1747658619751,0.4268596,2398.8,2398.2,8.0]
[1747658619957,0.4268596,2398.8,2398.5,0.13343402]
[1747658620390,0.8038,2398.7,2398.5,0.13343402]
[1747658620564,0.04121389,2398.7,2398.5,0.13343402]
[1747658620765,0.1,2398.9,2398.5,0.13343402]
[1747658621004,5.72071326,2398.9,2398.5,0.13343402]
[1747658621292,5.72080015,2398.9,2398.4,0.14819465]
[1747658621689,1.55212689,2398.9,2398.4,0.14819465]
[1747658621887,0.1,2398.9,2398.4,0.14819465]
[1747658622088,0.1,2398.9,2398.5,4.16925326]
[1747658622595,0.1,2398.9,2398.6,0.13334872]
[1747658622798,0.1,2398.9,2398.8,4.16875104]
[1747658623095,0.1,2398.9,2398.8,13.54065104]
[1747658623271,0.1,2398.9,2398.8,14.14130955]
[1747658623457,0.1,2398.9,2398.8,14.08520955]
[1747658623654,0.1,2399.9,2398.8,14.08520955]
[1747658623896,0.1,2399.9,2399.0,0.7658]
[1747658624097,0.1,2399.9,2399.3,4.71773544]
[1747658624294,0.1,2399.9,2399.3,5.94826039]
[1747658624506,0.1,2399.9,2399.5,8.0]
[1747658624670,0.1,2399.9,2399.6,4.16725744]
[1747658624890,0.1,2399.9,2399.7,4.16715693]
[1747658625275,0.1,2399.9,2399.8,4.16701391]
[1747658625476,0.1,2399.9,2399.8,12.76767242]
[1747658626416,0.1,2399.9,2399.8,13.31767242]
[1747658626592,0.1,2399.9,2399.8,14.08747242]
[1747658626776,0.1,2399.9,2399.8,14.22072437]
[1747658627305,0.1,2399.9,2399.8,14.52672626]
[1747658627891,0.1,2399.9,2399.8,33.54272626]
[1747658628087,0.1,2399.9,2399.8,9.957907]
[1747658628291,0.1,2399.9,2399.8,23.64792091]
[1747658629192,0.1,2399.9,2399.8,9.957907]
[1747658629500,0.1,2399.9,2399.8,14.12492091]
[1747658630914,0.1,2399.9,2399.8,14.67492091]
[1747658631116,0.1,2399.9,2399.8,13.84347431]
[1747658632885,4.26693471,2399.9,2399.4,5.12069963]
[1747658633117,0.1,2399.9,2399.6,4.1673405]
[1747658633323,0.1,2399.9,2399.6,8.0]
[1747658633619,0.1,2399.9,2399.6,12.16734209]
[1747658633920,0.1,2399.9,2399.6,8.30700512]
[1747658634217,4.26688125,2399.9,2399.5,9.429]
[1747658634431,4.26689677,2399.9,2399.3,12.16779076]
[1747658634783,4.26691496,2399.9,2399.5,8.0]
[1747658634981,0.1,2399.9,2399.7,4.16718079]
[1747658635283,0.1,2399.9,2399.5,12.16743235]
[1747658635482,0.1,2399.9,2399.5,12.16745785]
[1747658635696,0.1,2399.9,2399.6,4.16734881]
[1747658635893,0.1,2399.9,2399.3,4.1677676]
[1747658636091,4.16722383,2399.7,2399.2,12.62546097]
[1747658636320,4.16718756,2399.7,2399.2,8.30937655]
[1747658636623,4.16718756,2399.7,2399.2,12.47733539]
[1747658636920,4.16740598,2399.6,2399.2,8.30937655]
[1747658637123,4.16730604,2399.7,2399.2,12.47736431]
[1747658637483,4.26684778,2399.9,2399.2,8.30937655]
[1747658637818,4.16781615,2399.4,2399.1,9.429]
[1747658637983,0.8133,2399.3,2398.9,4.16849366]
[1747658638187,4.16805601,2399.2,2398.9,0.84853471]
[1747658638421,4.16805601,2399.2,2398.8,8.14819465]
[1747658638718,4.98125607,2399.3,2398.8,12.31682605]
[1747658639621,4.16806503,2399.2,2398.8,12.31682605]
[1747658639834,4.98123379,2399.3,2398.8,12.31682605]
[1747658639999,4.1680729,2399.2,2398.8,12.31682605]
[1747658640400,4.1682338,2399.1,2398.8,8.0]
[1747658640702,4.9812299,2399.3,2398.7,4.1688499]
[1747658640703,4.16813023,2399.2,2398.7,12.16877246]
[1747658642438,4.16854888,2399.0,2398.5,0.7955]
[1747658642605,4.16871896,2398.9,2398.5,8.7955]
[1747658642926,4.16847067,2399.0,2398.5,0.7955]
[1747658643103,4.16847067,2399.0,2398.7,8.0]
[1747658644326,4.16847067,2399.0,2398.7,8.30571246]
[1747658644622,4.16847067,2399.0,2398.8,0.23235343]
[1747658645027,14.35825021,2399.3,2398.9,4.16848048]
[1747658645227,14.35825021,2399.3,2398.8,5.67172029]
[1747658645398,14.35825021,2399.3,2398.8,5.43936686]
[1747658645918,4.16807102,2399.2,2398.8,5.43936686]
[1747658646297,4.16823474,2399.1,2398.8,1.27071401]
[1747658646496,4.16823474,2399.1,2398.9,0.23248065]
[1747658646934,4.16823474,2399.1,2398.7,12.47463]
[1747658647093,4.16823474,2399.1,2398.8,0.23248128]
[1747658647734,4.16815965,2399.2,2398.9,0.23248128]
[1747658648028,4.16815965,2399.2,2398.9,0.36581223]
[1747658648334,4.16824042,2399.1,2398.9,0.13333095]
[1747658648535,4.16819519,2399.2,2398.9,0.13333095]
[1747658649237,10.1903,2399.3,2399.0,0.13333095]
[1747658649441,4.16822846,2399.2,2399.0,0.13333095]
[1747658649603,4.16822975,2399.1,2399.0,0.13333095]
[1747658650551,4.16808867,2399.2,2399.0,0.13333095]
[1747658651071,4.16822975,2399.1,2399.0,0.13333095]
[1747658651415,14.35826747,2399.3,2399.0,0.13333095]
[1747658651416,10.1903,2399.3,2399.0,0.13333095]
[1747658651610,14.35832134,2399.3,2399.0,0.13333095]
[1747658651839,4.16805631,2399.2,2399.0,0.13333095]
[1747658652454,13.54497212,2399.3,2399.1,0.13333095]
[1747658653664,4.16797212,2399.3,2399.1,0.13333095]
[1747658653820,4.96325601,2399.2,2399.1,0.13333095]
[1747658654018,4.1684035,2399.0,2398.9,0.14819465]
[1747658654457,0.778,2399.5,2398.9,8.14819465]
[1747658654641,4.94560813,2399.5,2398.9,8.38091365]
[1747658654848,14.32068396,2399.5,2399.0,4.40105761]
[1747658655053,13.5981555,2399.8,2399.3,4.16774991]
[1747658655054,10.209,2399.8,2399.3,4.16774991]
[1747658655271,23.75113466,2399.8,2399.4,0.232719]
[1747658655430,23.75109808,2399.8,2399.5,0.13330038]
[1747658656244,22.97309808,2399.8,2399.5,0.13330038]
[1747658656973,22.97309808,2399.8,2399.6,0.23287432]
[1747658657134,22.97309808,2399.8,2399.5,0.13330038]
[1747658657135,4.16718903,2399.7,2399.5,0.13330038]
[1747658657572,4.16718903,2399.7,2399.6,0.13330038]
[1747658657736,4.16718903,2399.7,2399.6,0.36659163]
[1747658658082,4.16718903,2399.7,2399.6,0.3665915]
[1747658658462,22.97311876,2399.8,2399.6,0.3665915]
[1747658658657,4.16718756,2399.7,2399.6,0.3665915]
[1747658659348,6.89121028,2399.7,2399.6,0.3665915]
[1747658659878,6.89121028,2399.7,2399.6,0.36664516]
[1747658660438,22.97312015,2399.8,2399.6,0.36664516]
[1747658660791,4.16718756,2399.7,2399.6,0.36664516]
[1747658661082,4.16718756,2399.7,2399.6,0.13330038]
[1747658661381,22.97302023,2399.8,2399.6,0.13330038]
[1747658661532,18.806,2399.8,2399.6,0.36670019]
[1747658661738,22.97314313,2399.8,2399.7,0.36670019]
[1747658663470,25.77683787,2399.8,2399.7,0.36670019]
[1747658663974,25.77683787,2399.8,2399.7,0.13330038]
[1747658664173,22.97314313,2399.8,2399.7,0.13330038]
[1747658664358,22.96814313,2399.8,2399.7,0.13330038]
[1747658664850,9.431,2399.8,2399.7,0.13330038]
[1747658665677,9.431,2399.8,2399.7,0.28149503]
[1747658666174,0.1,2399.9,2399.7,0.28149503]
[1747658666379,13.63584553,2399.9,2399.7,0.28149503]
[1747658666877,4.16701391,2399.8,2399.7,0.28149503]
[1747658667981,13.53501391,2399.8,2399.7,0.28149503]
[1747658668894,13.53501391,2399.8,2399.7,0.13330038]
[1747658680522,13.53501391,2399.8,2399.7,0.36687369]
[1747658681491,13.53501391,2399.8,2399.7,0.36716836]
[1747658681890,13.53501391,2399.8,2399.7,0.36716775]
[1747658682908,13.53501391,2399.8,2399.7,0.36716776]
[1747658683212,15.74775975,2399.8,2399.7,0.36717109]
[1747658683416,15.74775975,2399.8,2399.7,0.3671716]
[1747658683711,15.74775975,2399.8,2399.7,0.13330038]
[1747658683892,15.74775975,2399.8,2399.7,0.36725445]
[1747658684679,15.74775975,2399.8,2399.7,0.13330038]
[1747658684875,4.16726711,2399.7,2399.1,0.8016]
[1747658685202,13.53501391,2399.8,2399.3,4.16784467]
[1747658685400,13.53509513,2399.8,2399.4,4.16770729]
[1747658686384,13.53510129,2399.8,2399.3,4.16777917]
[1747658686581,9.368,2399.8,2399.3,4.16777917]
[1747658686807,9.368,2399.8,2399.3,4.61513481]
[1747658687008,4.16719,2399.7,2399.3,4.61513481]
[1747658687512,4.16747378,2399.6,2399.3,0.44735564]
[1747658687721,4.16738441,2399.6,2399.3,0.44735564]
[1747658688417,9.368,2399.8,2399.3,0.44735564]
[1747658688580,0.1,2399.9,2399.6,4.16725448]
[1747658688893,9.452,2399.9,2399.7,0.8311]
[1747658689885,13.61892971,2399.9,2399.7,0.8311]
[1747658690103,4.26692971,2399.9,2399.7,0.8311]
[1747658690314,4.16701391,2399.8,2399.7,0.8311]
[1747658690618,0.1,2399.9,2399.7,0.8311]
[1747658690914,4.26694948,2399.9,2399.7,0.8311]
[1747658691820,0.1,2399.9,2399.5,0.8322]
[1747658691988,4.1671968,2399.7,2399.5,0.8322]
[1747658692185,4.16708953,2399.8,2399.5,0.8322]
[1747658693422,4.16722332,2399.7,2399.5,0.8322]
[1747658694120,4.16711358,2399.8,2399.5,0.8322]
[1747658694284,4.16723463,2399.7,2399.5,0.8322]
[1747658694685,0.84343482,2399.7,2399.2,0.7832]
[1747658694884,4.16784238,2399.4,2399.2,0.7832]
[1747658697210,4.16754443,2399.5,2399.2,0.7832]
[1747658697527,4.16754443,2399.5,2399.3,0.13330739]
[1747658697825,4.9363727,2399.8,2399.3,0.13330739]
[1747658697993,4.16736384,2399.6,2399.3,0.13330739]
[1747658698502,0.1,2399.9,2399.3,1.48343798]
[1747658698811,4.26698829,2399.9,2399.4,4.16755856]
[1747658699017,4.16707714,2399.8,2399.4,4.30086595]
[1747658699630,4.1672354,2399.7,2399.4,0.13330739]
[1747658699934,4.1672354,2399.7,2399.5,0.13330739]
[1747658700316,4.16736122,2399.6,2399.5,0.13330739]
[1747658700907,4.20857511,2399.6,2399.5,0.13330739]
[1747658701241,23.62457511,2399.6,2399.5,0.13330739]
[1747658701410,24.39156122,2399.6,2399.5,0.13330739]
[1747658702809,4.1681518,2399.2,2398.7,4.16884737]
[1747658703678,4.1681518,2399.2,2398.6,4.56150687]
[1747658703679,4.96063534,2399.1,2398.6,4.56150687]
[1747658703955,4.96063534,2399.1,2398.6,0.39251188]
[1747658703956,4.96282483,2398.7,2398.6,0.39251188]
[1747658704250,10.07,2399.0,2398.6,4.16909864]
[1747658704546,10.8639,2399.0,2398.7,4.16892366]
[1747658705521,10.8639,2399.0,2398.8,0.13334163]
[1747658706135,10.8639,2399.0,2398.8,4.30209103]
[1747658706710,10.8639,2399.0,2398.9,0.13334163]
[1747658706952,13.94216071,2399.0,2398.9,0.13334163]
[1747658707152,13.94216071,2399.0,2398.9,0.36644512]
[1747658707753,26.11056421,2399.0,2398.9,0.13334163]
[1747658707917,18.11056421,2399.0,2398.9,0.13334163]
[1747658708537,13.94216071,2399.0,2398.2,4.16969253]
[1747658708711,4.16894072,2398.7,2398.2,4.16969253]
[1747658709414,4.16894072,2398.7,2398.3,0.23290613]
[1747658709735,4.16902747,2398.7,2398.4,0.13336567]
[1747658709935,4.16911459,2398.6,2398.4,0.13336567]
[1747658710156,4.16927246,2398.5,2398.4,0.13336567]
[1747658710652,4.16927246,2398.5,2398.4,0.36617575]
[1747658711149,9.333,2398.7,2398.4,0.36617575]
[1747658711361,9.333,2398.7,2398.4,0.13336567]
[1747658711523,4.16921264,2398.6,2398.4,0.13336567]
[1747658712259,4.16927246,2398.5,2398.4,0.13336567]
[1747658712959,4.16927246,2398.5,2398.4,0.36607812]
[1747658714553,9.348,2398.8,2398.4,0.36607812]
[1747658714737,9.348,2398.8,2398.4,4.53545054]
[1747658714943,4.1684466,2399.0,2398.6,4.97719543]
[1747658715272,9.329,2399.0,2398.7,0.23271245]
[1747658715627,13.4974257,2399.0,2398.7,0.23271245]
[1747658715866,4.16857726,2398.9,2398.8,0.13336567]
[1747658716159,4.16857726,2398.9,2398.8,0.36607812]
[1747658716929,13.49749599,2399.0,2398.8,0.36607812]
[1747658717261,9.329,2399.0,2398.8,0.36607812]
[1747658717870,9.329,2399.0,2398.8,0.13336567]
[1747658718562,13.51832508,2399.1,2398.8,0.13336567]
[1747658718780,4.16815834,2399.2,2398.8,4.16873528]
[1747658718982,4.16823076,2399.1,2398.7,4.40166903]
[1747658719387,4.16823076,2399.1,2398.8,0.23283128]
[1747658719687,9.349,2399.4,2398.9,4.95106462]
[1747658719688,13.51678018,2399.4,2398.9,4.95106462]
[1747658720083,13.51678018,2399.4,2399.0,0.36615563]
[1747658720453,9.349,2399.4,2399.0,4.53445387]
[1747658720653,13.51672295,2399.4,2399.0,4.53445387]
[1747658720885,4.16772295,2399.4,2399.1,0.23283128]
[1747658721486,4.1678891,2399.3,2399.2,0.13332435]
[1747658721691,5.00145031,2399.3,2399.2,0.36615563]
[1747658721982,4.1678891,2399.3,2399.2,0.36615563]
[1747658722787,4.16781166,2399.4,2399.2,0.36615563]
[1747658723379,4.16781166,2399.4,2399.2,0.13332435]
[1747658723586,4.16781166,2399.4,2399.3,0.23305206]
[1747658724579,4.16781166,2399.4,2399.3,0.36637641]
[1747658725168,9.317,2399.7,2399.3,0.36650252]
[1747658725756,4.16746526,2399.6,2399.3,0.36650252]
[1747658725955,4.16746526,2399.6,2399.4,0.13332435]
[1747658726155,4.1675349,2399.5,2399.4,0.36650252]
[1747658726366,4.16701391,2399.8,2399.4,1.17780252]
[1747658726705,32.33891521,2399.9,2399.4,5.34536127]
[1747658726909,22.26891521,2399.9,2399.4,5.34536127]
[1747658727113,4.26691521,2399.9,2399.5,0.13332435]
[1747658727320,4.26691521,2399.9,2399.6,0.23317817]
[1747658727503,4.26691521,2399.9,2399.7,0.23317817]
[1747658727805,4.16701391,2399.8,2399.7,0.23317817]
[1747658728007,4.26691572,2399.9,2399.5,4.30079319]
[1747658728373,4.26691572,2399.9,2399.6,0.36639204]
[1747658728567,0.1,2399.9,2399.8,4.16701391]
[1747658728771,0.1,2399.9,2399.8,12.4000816]
[1747658729108,0.1,2399.9,2399.8,8.54527088]
[1747658729308,0.1,2399.9,2399.8,0.23306769]
[1747658729475,4.26684028,2399.9,2399.8,0.23306769]
[1747658729671,5.62472431,2399.9,2399.8,0.23306769]
[1747658730182,5.62472431,2399.9,2399.8,0.36639204]
[1747658731012,5.6659382,2399.9,2399.8,0.36639204]
[1747658731684,4.16783942,2399.4,2399.2,0.19510354]
[1747658732405,4.16783942,2399.4,2399.3,0.23287972]
[1747658733008,4.20905331,2399.4,2399.3,0.23287972]
[1747658733211,5.00138136,2399.4,2399.3,0.23287972]
[1747658733507,5.00138136,2399.4,2399.3,0.13331056]
[1747658733508,16.48779525,2399.4,2399.3,0.13331056]
[1747658733708,4.9936035,2399.0,2398.9,0.19510354]
[1747658733895,23.65681739,2399.0,2398.9,0.19510354]
[1747658734074,26.39811183,2399.0,2398.9,0.19510354]
[1747658734270,22.22970833,2399.0,2398.9,0.19510354]
[1747658734689,18.622,2399.0,2398.9,0.19510354]
[1747658736091,9.306,2399.0,2398.9,0.19510354]
[1747658736612,19.374,2399.4,2398.6,0.821]
[1747658738139,19.374,2399.4,2398.7,0.0416842]
[1747658738317,19.374,2399.4,2398.5,1.3719]
[1747658738488,19.4722,2399.9,2398.9,0.7612]
[1747658738980,19.4722,2399.9,2398.9,0.95630354]
[1747658739327,19.4722,2399.9,2399.6,4.16725182]
[1747658739714,10.1702,2399.9,2399.6,4.16725182]
[1747658740037,9.417,2399.9,2399.6,4.16721985]
[1747658740399,9.417,2399.9,2399.5,4.16750214]
[1747658740801,9.417,2399.9,2399.6,4.16727056]
[1747658741098,13.58387416,2399.9,2399.5,4.16745931]
[1747658741535,13.58387416,2399.9,2399.4,4.16762605]
[1747658742435,4.16701391,2399.8,2399.3,12.1678034]
[1747658742632,4.16721318,2399.7,2399.3,12.1678034]
[1747658742820,4.16721318,2399.7,2399.4,0.23308987]
[1747658743027,4.1675349,2399.5,2399.4,0.23308987]
[1747658743221,0.7707,2399.6,2399.1,8.96620354]
[1747658743424,4.16778739,2399.4,2399.1,0.96620354]
[1747658743647,4.16778739,2399.4,2399.2,0.23310911]
[1747658743809,4.16771664,2399.4,2399.2,0.23310911]
[1747658744007,4.16762748,2399.5,2399.3,0.23310911]
[1747658744205,4.16770859,2399.4,2399.3,0.23310911]
[1747658744512,4.16788229,2399.3,2399.2,0.23310911]
[1747658745831,4.16818155,2399.2,2399.0,0.23310911]
[1747658746138,4.1684035,2399.0,2398.9,0.19510354]
[1747658746341,4.16824821,2399.1,2398.9,0.19510354]
[1747658746542,4.16824821,2399.1,2398.9,0.32843175]
[1747658746849,4.16824821,2399.1,2399.0,0.23330417]
[1747658748542,4.16824821,2399.1,2399.0,0.36663238]
[1747658748743,13.45724821,2399.1,2399.0,0.36663238]
[1747658748911,15.29998881,2399.1,2399.0,0.36663238]
[1747658749545,25.36998881,2399.1,2399.0,0.36663238]
[1747658749748,25.36998881,2399.1,2398.8,0.14672721]
[1747658749749,4.16857726,2398.9,2398.8,0.14672721]
[1747658750058,4.16857726,2398.9,2398.8,0.38005669]
[1747658750459,14.34679115,2398.9,2398.8,0.38005669]
[1747658750658,18.40376996,2398.9,2398.8,0.38005669]
[1747658750955,18.40376996,2398.9,2398.8,0.14672721]
[1747658751657,4.1693164,2398.5,2398.3,0.14672721]
[1747658751824,4.16944629,2398.4,2398.3,0.14672721]
[1747658752212,4.16944629,2398.4,2398.3,0.37999246]
[1747658752636,4.16936496,2398.5,2398.3,0.37999246]
[1747658753111,4.16936496,2398.5,2398.4,0.13336594]
[1747658754173,4.21057885,2398.5,2398.4,0.13336594]
[1747658754313,5.79493237,2398.5,2398.4,0.13336594]
[1747658755014,5.75371848,2398.5,2398.4,0.13336594]
[1747658756152,4.16996295,2398.2,2398.0,0.14672721]
[1747658757365,4.16996789,2398.1,2398.0,0.14672721]
[1747658758273,4.16996789,2398.1,2398.0,0.13338408]
[1747658759080,9.282,2398.4,2398.0,0.13338408]
[1747658759284,4.16986902,2398.2,2398.0,0.13338408]
[1747658759485,9.282,2398.4,2397.7,0.46532217]
[1747658759775,4.17048961,2397.8,2397.7,0.14672721]
[1747658760172,4.2117035,2397.8,2397.7,0.14672721]
[1747658760379,14.2968035,2397.8,2397.7,0.14672721]
[1747658760557,14.25558961,2397.8,2397.7,0.14672721]
[1747658760930,13.45248961,2397.8,2397.7,0.14672721]
[1747658761671,9.276,2398.0,2397.7,0.96062721]
[1747658761872,9.276,2398.0,2397.7,0.8139]
[1747658762059,13.45205171,2398.1,2397.7,0.8139]
[1747658762260,4.17016469,2398.0,2397.7,0.8139]
[1747658762463,9.282,2398.1,2397.7,0.8139]
[1747658762648,4.17017828,2398.0,2397.7,0.8139]
[1747658762847,13.45209573,2398.1,2397.7,0.8139]
[1747658763048,9.282,2398.1,2397.7,0.8139]
[1747658763374,9.282,2398.1,2397.8,4.30387542]
[1747658763743,13.45197892,2398.1,2397.8,0.13339401]
[1747658763958,9.282,2398.1,2397.8,0.13339401]
[1747658764180,13.45198369,2398.1,2397.8,0.13339401]
[1747658765361,13.45198369,2398.1,2397.7,0.8139]
[1747658766199,9.282,2398.1,2397.7,4.98452164]
[1747658766372,9.282,2398.1,2397.8,4.17048175]
[1747658766567,14.23967324,2398.3,2397.9,4.1703089]
[1747658766798,23.52367324,2398.3,2397.9,4.1703089]
[1747658767481,9.284,2398.3,2397.9,5.08572284]
[1747658767658,9.284,2398.3,2397.9,5.08571831]
[1747658767855,9.284,2398.3,2398.0,0.809]
[1747658768100,4.97696037,2398.9,2398.3,4.16953991]
[1747658768394,4.97696037,2398.9,2398.5,0.809]
[1747658768395,4.16872422,2398.9,2398.5,0.809]
[1747658768696,13.45246131,2399.0,2398.5,0.809]
[1747658769001,13.45242211,2399.0,2398.6,8.0]
[1747658769361,4.16857865,2398.9,2398.6,8.0]
[1747658769888,4.16857865,2398.9,2398.7,0.13337485]
[1747658770395,18.008,2399.3,2398.8,4.16865676]
[1747658770598,22.17598487,2399.3,2398.7,1.13057325]
[1747658770899,4.16761861,2399.5,2399.1,4.16822903]
[1747658771097,4.16761861,2399.5,2398.9,4.16857726]
[1747658771098,4.16761861,2399.5,2399.0,4.16832458]
[1747658771283,4.16784233,2399.4,2399.0,0.8339301]
[1747658771476,4.16784233,2399.4,2399.0,8.0]
[1747658771808,4.1675349,2399.5,2399.0,8.0]
[1747658771956,0.8065,2399.6,2398.8,0.7984]
[1747658771957,9.283,2399.7,2399.2,4.16797382]
[1747658772161,9.283,2399.7,2399.1,0.818]
[1747658772397,4.16747576,2399.6,2399.1,0.818]
[1747658772691,4.16782942,2399.4,2399.1,0.818]
[1747658772867,4.16782942,2399.4,2399.2,0.1333155]
[1747658773971,4.16788229,2399.3,2399.2,0.1333155]
[1747658774503,4.16788229,2399.3,2399.1,0.818]
[1747658774673,13.45022557,2399.7,2399.1,0.818]
[1747658775000,4.16794579,2399.3,2399.1,0.818]
[1747658775492,4.1679775,2399.3,2399.1,0.818]
[1747658775868,4.16763081,2399.5,2399.1,0.818]
[1747658776073,4.1677206,2399.4,2399.1,8.818]
[1747658776891,4.16794032,2399.3,2399.1,0.818]
[1747658777393,4.16781287,2399.4,2399.1,0.818]
[1747658777618,4.16781287,2399.4,2399.2,0.13332166]
[1747658777798,4.96178229,2399.3,2399.2,0.13332166]
[1747658778317,4.16764888,2399.5,2399.2,0.13332166]
[1747658778466,4.16768591,2399.5,2399.1,0.8139]
[1747658779185,4.16771804,2399.4,2399.1,0.8139]
[1747658779800,4.16739923,2399.6,2399.3,8.0]
[1747658780508,4.16739923,2399.6,2399.4,0.13330114]
[1747658780870,4.1675349,2399.5,2399.4,0.13330114]
[1747658781587,4.1675349,2399.5,2399.1,0.14672721]
[1747658781793,4.16805601,2399.2,2399.1,0.14672721]
[1747658783310,5.00165425,2399.2,2399.1,0.14672721]
[1747658783468,15.09295425,2399.2,2399.1,0.14672721]
[1747658783672,25.16295425,2399.2,2399.1,0.14672721]
[1747658783894,4.16869935,2398.9,2398.4,5.11240139]
[1747658784097,4.16850463,2399.0,2398.5,0.23253879]
[1747658784271,20.99489824,2399.2,2398.5,4.93619476]
[1747658784473,4.16848247,2399.0,2398.6,8.23253879]
[1747658784917,4.16858521,2398.9,2398.6,8.23253879]
[1747658785117,4.16892483,2398.7,2398.6,0.23253879]
[1747658785307,20.1613,2399.2,2398.7,0.23253879]
[1747658785608,4.16840605,2399.0,2398.7,0.23253879]
[1747658785778,4.16830743,2399.1,2398.7,1.5496256]
[1747658785970,4.16830743,2399.1,2398.7,1.31708681]
[1747658786173,4.16780566,2399.4,2398.9,4.93775072]
[1747658786390,20.0924,2399.7,2399.0,4.4008705]
[1747658786589,4.1677231,2399.4,2399.0,4.4008705]
[1747658786825,4.1676264,2399.5,2399.1,0.23254344]
[1747658787006,4.16754197,2399.5,2399.1,4.40068345]
[1747658787180,4.16754197,2399.5,2399.2,8.0]
[1747658787381,4.16740091,2399.6,2399.2,8.0]
[1747658787590,4.16721646,2399.7,2399.3,0.7554]
[1747658787917,4.16707576,2399.8,2399.4,4.16767379]
[1747658788215,4.26688656,2399.9,2399.4,0.1333163]
[1747658788415,4.16701743,2399.8,2399.5,0.23250216]
[1747658788882,4.16725662,2399.7,2399.5,0.23250216]
[1747658789077,4.16707153,2399.8,2399.5,0.23250216]
[1747658789519,4.26685863,2399.9,2399.5,8.0]